[Event "*** Titled Tuesday Blitz"]
[Site "Chess.com"]
[Date "2019.06.04"]
[Round "3"]
[White "Tacticalon"]
[Black "Alexander_Moskalenko"]
[Result "1-0"]
[WhiteElo "2698"]
[BlackElo "2891"]
[TimeControl "180+2"]
[EndTime "13:38:31 PDT"]
[Termination "Tacticalon won by checkmate"]

1. Nf3 {[%clk 0:03:01.9]} 1... c5 {[%clk 0:03:00.7]} 2. g3 {[%clk 0:03:02.4]}
2... Nf6 {[%clk 0:03:00.9]} 3. Bg2 {[%clk 0:03:03.5]} 3... g6 {[%clk 0:03:02.8]}
4. O-O {[%clk 0:03:03.3]} 4... Nc6 {[%clk 0:03:02.7]} 5. d3 {[%clk 0:03:04.4]}
5... Bg7 {[%clk 0:03:02.9]} 6. c4 {[%clk 0:03:03.5]} 6... O-O {[%clk 0:03:04.8]}
7. Nc3 {[%clk 0:03:04.6]} 7... d6 {[%clk 0:03:03.9]} 8. Bf4 {[%clk 0:03:00.9]}
8... Be6 {[%clk 0:02:53.7]} 9. Ng5 {[%clk 0:02:57.1]} 9... Bd7 {[%clk
0:02:54.3]} 10. Nge4 {[%clk 0:02:54.2]} 10... Nxe4 {[%clk 0:02:54.3]} 11. Nxe4
{[%clk 0:02:56.1]} 11... Rb8 {[%clk 0:02:51.4]} 12. Rb1 {[%clk 0:02:55.2]} 12...
b5 {[%clk 0:02:50.9]} 13. b3 {[%clk 0:02:46.2]} 13... Qa5 {[%clk 0:02:51.4]} 14.
Qd2 {[%clk 0:02:31.8]} 14... Qxd2 {[%clk 0:02:52]} 15. Nxd2 {[%clk 0:02:30.5]}
15... Nd4 {[%clk 0:02:52.7]} 16. Rfe1 {[%clk 0:02:30.8]} 16... a5 {[%clk
0:02:36.6]} 17. Ne4 {[%clk 0:01:57.9]} 17... f5 {[%clk 0:02:31.6]} 18. Nc3
{[%clk 0:01:53.3]} 18... b4 {[%clk 0:02:19.5]} 19. Nd5 {[%clk 0:01:52.7]} 19...
e6 {[%clk 0:02:18.2]} 20. Ne7+ {[%clk 0:01:48.1]} 20... Kf7 {[%clk 0:02:17.3]}
21. Bxd6 {[%clk 0:01:48.3]} 21... Rbe8 {[%clk 0:02:06.4]} 22. Bxc5 {[%clk
0:01:42.2]} 22... Rxe7 {[%clk 0:02:05.3]} 23. e3 {[%clk 0:01:43.4]} 23... Nc2
{[%clk 0:02:06.1]} 24. Re2 {[%clk 0:01:44.2]} 24... Na3 {[%clk 0:02:07]} 25. Rd1
{[%clk 0:01:45.4]} 25... Bc3 {[%clk 0:02:07.4]} 26. d4 {[%clk 0:01:45.1]} 26...
Rc8 {[%clk 0:02:06.9]} 27. Bxe7 {[%clk 0:01:46.2]} 27... Kxe7 {[%clk 0:02:08.8]}
28. e4 {[%clk 0:01:47.7]} 28... f4 {[%clk 0:02:05.4]} 29. gxf4 {[%clk
0:01:48.1]} 29... Rf8 {[%clk 0:02:06.4]} 30. f5 {[%clk 0:01:49.1]} 30... gxf5
{[%clk 0:02:07.4]} 31. e5 {[%clk 0:01:49.1]} 31... f4 {[%clk 0:02:02.6]} 32. Bf3
{[%clk 0:01:49.3]} 32... Rf5 {[%clk 0:01:57.8]} 33. Kh1 {[%clk 0:01:43.3]} 33...
a4 {[%clk 0:01:51.2]} 34. Be4 {[%clk 0:01:42.7]} 34... Rg5 {[%clk 0:01:51.9]}
35. f3 {[%clk 0:01:42.6]} 35... axb3 {[%clk 0:01:51.6]} 36. axb3 {[%clk
0:01:44.5]} 36... h6 {[%clk 0:01:50.8]} 37. Rg2 {[%clk 0:01:42]} 37... Kf7
{[%clk 0:01:14]} 38. h4 {[%clk 0:01:38.4]} 38... Rxg2 {[%clk 0:01:12.1]} 39.
Kxg2 {[%clk 0:01:40.3]} 39... h5 {[%clk 0:01:13.3]} 40. Kf2 {[%clk 0:01:40.1]}
40... Bc8 {[%clk 0:01:05.2]} 41. Ke2 {[%clk 0:01:39.2]} 41... Ba6 {[%clk
0:01:04]} 42. Kd3 {[%clk 0:01:40.1]} 42... Ke7 {[%clk 0:01:03.7]} 43. Rg1 {[%clk
0:01:40.8]} 43... Kf7 {[%clk 0:00:58]} 44. Bg6+ {[%clk 0:01:40]} 44... Kf8
{[%clk 0:00:53.7]} 45. Be4 {[%clk 0:01:39.7]} 45... Kf7 {[%clk 0:00:54.3]} 46.
Rg5 {[%clk 0:01:40.7]} 46... Nb1 {[%clk 0:00:54.6]} 47. Rxh5 {[%clk 0:01:39]}
47... Nd2 {[%clk 0:00:55.9]} 48. Rh7+ {[%clk 0:01:39.4]} 48... Ke8 {[%clk
0:00:55]} 49. Ra7 {[%clk 0:01:40.1]} 49... Bc8 {[%clk 0:00:56]} 50. h5 {[%clk
0:01:41]} 50... Nxb3 {[%clk 0:00:41.5]} 51. h6 {[%clk 0:01:35.7]} 51... Bxd4
{[%clk 0:00:42.6]} 52. Ra8 {[%clk 0:01:20.5]} 52... Kd7 {[%clk 0:00:43.4]} 53.
Bc6+ {[%clk 0:00:41.3]} 53... Kc7 {[%clk 0:00:44.4]} 54. Ba4 {[%clk 0:00:37.3]}
54... Bb7 {[%clk 0:00:27.9]} 55. Bxb3 {[%clk 0:00:36.5]} 55... Bxe5 {[%clk
0:00:28.7]} 56. Rf8 {[%clk 0:00:31.9]} 56... Bxf3 {[%clk 0:00:29.3]} 57. h7
{[%clk 0:00:32.7]} 57... Kd6 {[%clk 0:00:30.8]} 58. h8=Q {[%clk 0:00:33.2]}
58... Bxh8 {[%clk 0:00:32.3]} 59. Rxh8 {[%clk 0:00:35.1]} 59... e5 {[%clk
0:00:34.2]} 60. Re8 {[%clk 0:00:25.5]} 60... Bh5 {[%clk 0:00:34]} 61. c5+ {[%clk
0:00:25.6]} 61... Kd7 {[%clk 0:00:30.9]} 62. Rxe5 {[%clk 0:00:27.5]} 62... Bg6+
{[%clk 0:00:32.5]} 63. Kd4 {[%clk 0:00:28.5]} 63... Bf7 {[%clk 0:00:34]} 64.
Bxf7 {[%clk 0:00:28.5]} 64... f3 {[%clk 0:00:35.9]} 65. Rf5 {[%clk 0:00:29.1]}
65... b3 {[%clk 0:00:36.7]} 66. Bxb3 {[%clk 0:00:30.1]} 66... f2 {[%clk
0:00:38.6]} 67. Rxf2 {[%clk 0:00:30.6]} 67... Kc6 {[%clk 0:00:40.5]} 68. Rf6+
{[%clk 0:00:31.7]} 68... Kc7 {[%clk 0:00:41.9]} 69. Bd5 {[%clk 0:00:32.2]} 69...
Kd7 {[%clk 0:00:43.8]} 70. c6+ {[%clk 0:00:33.4]} 70... Ke8 {[%clk 0:00:45.7]}
71. Rf7 {[%clk 0:00:33.7]} 71... Kd8 {[%clk 0:00:47.6]} 72. c7+ {[%clk
0:00:35.1]} 72... Ke8 {[%clk 0:00:49.4]} 73. c8=Q# {[%clk 0:00:35.8]} 1-0

[Event "*** Titled Tuesday Blitz"]
[Site "Chess.com"]
[Date "2019.06.04"]
[Round "3"]
[White "Koksik_13"]
[Black "gena217"]
[Result "0-1"]
[WhiteElo "2640"]
[BlackElo "2914"]
[TimeControl "180+2"]
[EndTime "13:38:40 PDT"]
[Termination "gena217 won on time"]

1. e4 {[%clk 0:03:00.8]} 1... c6 {[%clk 0:03:01]} 2. d4 {[%clk 0:03:01.9]} 2...
d5 {[%clk 0:03:02.9]} 3. Nc3 {[%clk 0:03:03]} 3... a6 {[%clk 0:03:03.7]} 4. Nf3
{[%clk 0:03:02.5]} 4... Bg4 {[%clk 0:03:03.9]} 5. Be2 {[%clk 0:03:01.4]} 5... e6
{[%clk 0:03:04.5]} 6. O-O {[%clk 0:03:00.4]} 6... Nf6 {[%clk 0:03:05.2]} 7. Bg5
{[%clk 0:02:57.8]} 7... Be7 {[%clk 0:03:05.1]} 8. e5 {[%clk 0:02:58.3]} 8...
Nfd7 {[%clk 0:03:06]} 9. Bxe7 {[%clk 0:02:59.5]} 9... Qxe7 {[%clk 0:03:07.9]}
10. Ne1 {[%clk 0:02:52.3]} 10... Bf5 {[%clk 0:02:58.1]} 11. Bd3 {[%clk
0:02:50.6]} 11... Bxd3 {[%clk 0:02:48.2]} 12. cxd3 {[%clk 0:02:47.1]} 12... O-O
{[%clk 0:02:45.2]} 13. f4 {[%clk 0:02:48.1]} 13... f6 {[%clk 0:02:14.2]} 14. Nf3
{[%clk 0:02:42.7]} 14... fxe5 {[%clk 0:02:06.1]} 15. fxe5 {[%clk 0:02:43.3]}
15... c5 {[%clk 0:02:05.5]} 16. dxc5 {[%clk 0:02:44.3]} 16... Qxc5+ {[%clk
0:02:05.9]} 17. d4 {[%clk 0:02:44.8]} 17... Qb6 {[%clk 0:02:07.5]} 18. Qd3
{[%clk 0:02:38.6]} 18... Nc6 {[%clk 0:02:05.6]} 19. Kh1 {[%clk 0:02:37]} 19...
h6 {[%clk 0:02:06.4]} 20. a3 {[%clk 0:02:32]} 20... Rf4 {[%clk 0:01:49.1]} 21.
Ne2 {[%clk 0:02:28.7]} 21... Re4 {[%clk 0:01:50.1]} 22. b4 {[%clk 0:02:19.9]}
22... Rc8 {[%clk 0:01:50.3]} 23. Ng3 {[%clk 0:02:17]} 23... Rxd4 {[%clk
0:01:37.6]} 24. Nxd4 {[%clk 0:02:17]} 24... Ndxe5 {[%clk 0:01:39]} 25. Qe2
{[%clk 0:01:52]} 25... Qxd4 {[%clk 0:01:39.4]} 26. Rae1 {[%clk 0:01:40.1]} 26...
Re8 {[%clk 0:01:27.3]} 27. h3 {[%clk 0:01:18.7]} 27... Qc3 {[%clk 0:01:24.9]}
28. Kh2 {[%clk 0:01:16.4]} 28... Re7 {[%clk 0:01:20.4]} 29. Qh5 {[%clk
0:01:11.6]} 29... Kh7 {[%clk 0:00:54.5]} 30. Qh4 {[%clk 0:01:09.1]} 30... Ng6
{[%clk 0:00:49.5]} 31. Qg4 {[%clk 0:00:55.6]} 31... Nce5 {[%clk 0:00:43.1]} 32.
Qe2 {[%clk 0:00:56.7]} 32... Qxa3 {[%clk 0:00:42.2]} 33. h4 {[%clk 0:00:55.4]}
33... Qxb4 {[%clk 0:00:34.6]} 34. h5 {[%clk 0:00:44.1]} 34... Qh4+ {[%clk
0:00:35.1]} 35. Kg1 {[%clk 0:00:45.2]} 35... Qxg3 {[%clk 0:00:33.9]} 36. hxg6+
{[%clk 0:00:46.2]} 36... Nxg6 {[%clk 0:00:35.8]} 37. Rf3 {[%clk 0:00:46.6]}
37... Qg5 {[%clk 0:00:35.3]} 38. Ref1 {[%clk 0:00:43.1]} 38... Rc7 {[%clk
0:00:26.1]} 39. R3f2 {[%clk 0:00:33.2]} 39... e5 {[%clk 0:00:24]} 40. Rf5 {[%clk
0:00:30.6]} 40... Qh4 {[%clk 0:00:21.8]} 41. Qd3 {[%clk 0:00:16.1]} 41... Qc4
{[%clk 0:00:20]} 42. Qg3 {[%clk 0:00:13.4]} 42... Qd4+ {[%clk 0:00:21.3]} 43.
Kh2 {[%clk 0:00:12.2]} 43... Rc3 {[%clk 0:00:22.5]} 44. R1f3 {[%clk 0:00:08.7]}
44... Rxf3 {[%clk 0:00:23.5]} 45. Rxf3 {[%clk 0:00:08.2]} 45... Qh4+ {[%clk
0:00:21.8]} 46. Qxh4 {[%clk 0:00:08.9]} 46... Nxh4 {[%clk 0:00:23.7]} 47. Rf7
{[%clk 0:00:10.2]} 47... b5 {[%clk 0:00:22.9]} 48. Ra7 {[%clk 0:00:09.5]} 48...
d4 {[%clk 0:00:23.8]} 49. Rxa6 {[%clk 0:00:10.5]} 49... d3 {[%clk 0:00:18.8]}
50. Rd6 {[%clk 0:00:11.2]} 50... e4 {[%clk 0:00:19.7]} 51. Rd4 {[%clk
0:00:12.1]} 51... Nf5 {[%clk 0:00:20.7]} 52. Rd5 {[%clk 0:00:04.2]} 52... Ne3
{[%clk 0:00:19.3]} 53. Rd4 {[%clk 0:00:05.2]} 53... b4 {[%clk 0:00:18.6]} 54.
Kg3 {[%clk 0:00:04.7]} 54... Nf5+ {[%clk 0:00:19]} 0-1

[Event "*** Titled Tuesday Blitz"]
[Site "Chess.com"]
[Date "2019.06.04"]
[Round "3"]
[White "VladDobrov"]
[Black "GMsKoRPioN"]
[Result "1-0"]
[WhiteElo "2832"]
[BlackElo "2549"]
[TimeControl "180+2"]
[EndTime "13:38:45 PDT"]
[Termination "VladDobrov won by resignation"]

1. d4 {[%clk 0:03:01.9]} 1... d6 {[%clk 0:03:00.8]} 2. Nf3 {[%clk 0:03:02.6]}
2... g6 {[%clk 0:03:02]} 3. e4 {[%clk 0:03:00.3]} 3... Bg7 {[%clk 0:03:02.3]} 4.
c3 {[%clk 0:03:01.5]} 4... Nf6 {[%clk 0:03:03.4]} 5. Bd3 {[%clk 0:03:02.5]} 5...
O-O {[%clk 0:03:04.5]} 6. O-O {[%clk 0:03:03.7]} 6... Nc6 {[%clk 0:03:06]} 7.
Re1 {[%clk 0:03:03.1]} 7... e5 {[%clk 0:03:06.2]} 8. Nbd2 {[%clk 0:03:04.1]}
8... Bg4 {[%clk 0:03:06.5]} 9. h3 {[%clk 0:03:04.9]} 9... Bxf3 {[%clk
0:03:06.9]} 10. Nxf3 {[%clk 0:03:06.8]} 10... Nh5 {[%clk 0:03:05.8]} 11. Bg5
{[%clk 0:02:54.4]} 11... Bf6 {[%clk 0:02:57]} 12. Be3 {[%clk 0:02:48.6]} 12...
Re8 {[%clk 0:02:23]} 13. Qb3 {[%clk 0:02:14.3]} 13... Qc8 {[%clk 0:02:07.4]} 14.
Rad1 {[%clk 0:01:59.4]} 14... a6 {[%clk 0:02:01.5]} 15. a3 {[%clk 0:01:58.5]}
15... Kg7 {[%clk 0:01:40.5]} 16. Qc2 {[%clk 0:01:57.3]} 16... Nf4 {[%clk
0:01:24.6]} 17. Bf1 {[%clk 0:01:56.7]} 17... g5 {[%clk 0:01:15.3]} 18. dxe5
{[%clk 0:01:32]} 18... dxe5 {[%clk 0:01:10.8]} 19. Nd2 {[%clk 0:01:09]} 19...
Ne7 {[%clk 0:01:03.8]} 20. Nc4 {[%clk 0:01:08.2]} 20... Neg6 {[%clk 0:01:03.8]}
21. Kh2 {[%clk 0:00:52.7]} 21... g4 {[%clk 0:01:01.7]} 22. Bxf4 {[%clk
0:00:41.2]} 22... Nxf4 {[%clk 0:00:57.8]} 23. Ne3 {[%clk 0:00:41.4]} 23... gxh3
{[%clk 0:00:58.2]} 24. Nf5+ {[%clk 0:00:42.1]} 24... Kh8 {[%clk 0:00:58.4]} 25.
g3 {[%clk 0:00:43.7]} 25... Ng6 {[%clk 0:00:51.9]} 26. Bxh3 {[%clk 0:00:44.7]}
26... Qb8 {[%clk 0:00:36.3]} 27. Qb3 {[%clk 0:00:45.1]} 27... Rf8 {[%clk
0:00:33]} 28. Rd7 {[%clk 0:00:45.7]} 28... Qe8 {[%clk 0:00:33]} 29. Rxc7 {[%clk
0:00:44.5]} 29... Rd8 {[%clk 0:00:32]} 30. Rd1 {[%clk 0:00:42.2]} 30... Rxd1
{[%clk 0:00:32.2]} 31. Qxd1 {[%clk 0:00:43.5]} 31... Qb5 {[%clk 0:00:33.5]} 32.
Qd2 {[%clk 0:00:40.9]} 32... Qa4 {[%clk 0:00:32]} 33. Rxb7 {[%clk 0:00:30]}
33... Qxe4 {[%clk 0:00:32.2]} 34. Nd6 {[%clk 0:00:27.3]} 34... Qf3 {[%clk
0:00:29.6]} 35. Nxf7+ {[%clk 0:00:27.1]} 35... Kg8 {[%clk 0:00:25.7]} 36. Nh6+
{[%clk 0:00:25.8]} 36... Kh8 {[%clk 0:00:26.8]} 37. Rd7 {[%clk 0:00:22.9]} 37...
Bg7 {[%clk 0:00:27.2]} 38. Ng4 {[%clk 0:00:23.9]} 38... e4 {[%clk 0:00:26.2]}
39. Qe3 {[%clk 0:00:20.6]} 39... Qf5 {[%clk 0:00:17.3]} 40. Rd2 {[%clk
0:00:19.6]} 40... Qf7 {[%clk 0:00:17.7]} 41. Kg1 {[%clk 0:00:18.6]} 41... h5
{[%clk 0:00:18.9]} 42. Nh2 {[%clk 0:00:20]} 42... Ne5 {[%clk 0:00:20.3]} 43. Bg2
{[%clk 0:00:20.8]} 43... Ng4 {[%clk 0:00:20.9]} 44. Nxg4 {[%clk 0:00:21.6]}
44... hxg4 {[%clk 0:00:22.8]} 45. Bxe4 {[%clk 0:00:23.5]} 45... Qh5 {[%clk
0:00:24.5]} 46. Rd5 {[%clk 0:00:24.2]} 46... Qh6 {[%clk 0:00:24.9]} 47. Qxh6+
{[%clk 0:00:24.9]} 47... Bxh6 {[%clk 0:00:26.8]} 48. Bf5 {[%clk 0:00:25.8]}
48... Bc1 {[%clk 0:00:27.1]} 49. b4 {[%clk 0:00:26.6]} 49... Bxa3 {[%clk
0:00:27.8]} 50. Bxg4 {[%clk 0:00:27.9]} 50... Bb2 {[%clk 0:00:29.7]} 51. Rc5
{[%clk 0:00:29.2]} 51... Bc1 {[%clk 0:00:26.4]} 52. Kg2 {[%clk 0:00:28.6]} 52...
Rf6 {[%clk 0:00:27.3]} 53. Bf5 {[%clk 0:00:27.8]} 53... Bd2 {[%clk 0:00:27.4]}
54. g4 {[%clk 0:00:27]} 54... Kg7 {[%clk 0:00:24.8]} 55. Kf3 {[%clk 0:00:27.8]}
55... Rd6 {[%clk 0:00:25.9]} 56. Ke4 {[%clk 0:00:28.7]} 56... Be1 {[%clk
0:00:26]} 57. f4 {[%clk 0:00:29.2]} 57... Rd2 {[%clk 0:00:27.2]} 58. Rc7+ {[%clk
0:00:29.9]} 58... Kf8 {[%clk 0:00:27.4]} 59. g5 {[%clk 0:00:29.3]} 59... Re2+
{[%clk 0:00:28.2]} 60. Kf3 {[%clk 0:00:29.9]} 60... Rf2+ {[%clk 0:00:29]} 61.
Ke3 {[%clk 0:00:30.6]} 61... Ra2 {[%clk 0:00:28.3]} 62. Be6 {[%clk 0:00:29.6]}
62... Bd2+ {[%clk 0:00:27.3]} 63. Ke4 {[%clk 0:00:30.1]} 63... Bc1 {[%clk
0:00:27.9]} 64. Bxa2 {[%clk 0:00:30.4]} 1-0

[Event "*** Titled Tuesday Blitz"]
[Site "Chess.com"]
[Date "2019.06.04"]
[Round "3"]
[White "sergeikim"]
[Black "Spring199"]
[Result "1-0"]
[WhiteElo "2407"]
[BlackElo "2213"]
[TimeControl "180+2"]
[EndTime "13:38:54 PDT"]
[Termination "sergeikim won by resignation"]

1. d4 {[%clk 0:03:01.9]} 1... Nf6 {[%clk 0:03:00.6]} 2. c4 {[%clk 0:03:02.5]}
2... e6 {[%clk 0:03:01.3]} 3. Nc3 {[%clk 0:03:03.4]} 3... Bb4 {[%clk 0:03:01.8]}
4. Qc2 {[%clk 0:03:04.2]} 4... d5 {[%clk 0:03:02.1]} 5. a3 {[%clk 0:03:05]} 5...
Bxc3+ {[%clk 0:03:02.5]} 6. Qxc3 {[%clk 0:03:06]} 6... O-O {[%clk 0:02:58.6]} 7.
Nf3 {[%clk 0:03:06.5]} 7... dxc4 {[%clk 0:02:52.4]} 8. Qxc4 {[%clk 0:03:07.4]}
8... b6 {[%clk 0:02:54.3]} 9. Bf4 {[%clk 0:03:07.7]} 9... Nd5 {[%clk 0:02:50.4]}
10. Bg5 {[%clk 0:03:07.7]} 10... f6 {[%clk 0:02:47.5]} 11. Bd2 {[%clk
0:03:06.3]} 11... Ba6 {[%clk 0:02:48]} 12. Qa4 {[%clk 0:03:06.2]} 12... Bb7
{[%clk 0:02:38.7]} 13. Qb3 {[%clk 0:02:46]} 13... Qd7 {[%clk 0:02:02.8]} 14. e4
{[%clk 0:02:41.9]} 14... Ne7 {[%clk 0:02:02.7]} 15. Bc4 {[%clk 0:02:41.1]} 15...
Bc8 {[%clk 0:01:54.3]} 16. O-O {[%clk 0:02:30.7]} 16... Kh8 {[%clk 0:01:53.3]}
17. Rad1 {[%clk 0:02:19.7]} 17... Nbc6 {[%clk 0:01:52.4]} 18. Bc3 {[%clk
0:02:17]} 18... a6 {[%clk 0:01:41.9]} 19. a4 {[%clk 0:02:16]} 19... Nd8 {[%clk
0:01:36.2]} 20. Bb4 {[%clk 0:02:04]} 20... Bb7 {[%clk 0:01:35.3]} 21. Rfe1
{[%clk 0:02:01]} 21... Re8 {[%clk 0:01:28.7]} 22. d5 {[%clk 0:01:44.2]} 22...
exd5 {[%clk 0:01:28.9]} 23. exd5 {[%clk 0:01:45.1]} 23... Nf7 {[%clk 0:01:17.6]}
24. Nd4 {[%clk 0:01:23.1]} 24... Nxd5 {[%clk 0:01:07.5]} 25. Ba3 {[%clk
0:01:08.1]} 25... Rxe1+ {[%clk 0:01:05.2]} 26. Rxe1 {[%clk 0:01:08.2]} 26... Ne5
{[%clk 0:01:05.7]} 27. Bf1 {[%clk 0:01:02.5]} 27... Nf4 {[%clk 0:01:04.2]} 28.
Rd1 {[%clk 0:00:58.8]} 28... Qg4 {[%clk 0:01:03.4]} 29. f3 {[%clk 0:00:39.2]}
29... Qg5 {[%clk 0:00:32.3]} 30. Ne6 {[%clk 0:00:27.7]} 30... Nxe6 {[%clk
0:00:28.9]} 31. Qxe6 {[%clk 0:00:27.5]} 31... Nxf3+ {[%clk 0:00:28.2]} 32. Kh1
{[%clk 0:00:27.7]} 32... Qh5 {[%clk 0:00:23.7]} 33. h3 {[%clk 0:00:21.5]} 33...
Ng5 {[%clk 0:00:23]} 34. Qg4 {[%clk 0:00:19.8]} 34... Qxh3+ {[%clk 0:00:18.6]}
35. Qxh3 {[%clk 0:00:19.8]} 35... Nxh3 {[%clk 0:00:20.5]} 36. Rd7 {[%clk
0:00:20.3]} 36... Ng5 {[%clk 0:00:19.4]} 37. Rxc7 {[%clk 0:00:20.2]} 37... Be4
{[%clk 0:00:20.6]} 38. Bxa6 {[%clk 0:00:17.2]} 38... h5 {[%clk 0:00:20.2]} 39.
Bb5 {[%clk 0:00:17.5]} 39... Rd8 {[%clk 0:00:20.3]} 40. Bb4 {[%clk 0:00:15]}
40... Rd1+ {[%clk 0:00:20.6]} 41. Kh2 {[%clk 0:00:16]} 41... Rb1 {[%clk
0:00:19.9]} 42. Bc3 {[%clk 0:00:16.2]} 42... Kh7 {[%clk 0:00:19.2]} 43. Re7
{[%clk 0:00:13.4]} 43... Rd1 {[%clk 0:00:17.5]} 44. Bxf6 {[%clk 0:00:12.8]}
44... Rd2 {[%clk 0:00:08]} 45. Rxg7+ {[%clk 0:00:10.9]} 45... Kh6 {[%clk
0:00:08.7]} 46. Rxg5 {[%clk 0:00:11.8]} 46... h4 {[%clk 0:00:06.1]} 47. Rg4
{[%clk 0:00:12.1]} 47... h3 {[%clk 0:00:06.7]} 48. Rxe4 {[%clk 0:00:09.9]} 48...
Rxg2+ {[%clk 0:00:06.9]} 49. Kxh3 {[%clk 0:00:10]} 49... Rg6 {[%clk 0:00:07.1]}
50. Bc3 {[%clk 0:00:10.6]} 50... Rd6 {[%clk 0:00:07]} 51. Rf4 {[%clk 0:00:11.1]}
51... Rd1 {[%clk 0:00:07.1]} 52. Rf6+ {[%clk 0:00:11.9]} 52... Kg5 {[%clk
0:00:07.6]} 53. Rxb6 {[%clk 0:00:12]} 53... Kf4 {[%clk 0:00:08.1]} 54. Kg2
{[%clk 0:00:10.8]} 54... Rd8 {[%clk 0:00:07.3]} 55. Kf2 {[%clk 0:00:08.6]} 55...
Rg8 {[%clk 0:00:06]} 56. Rf6+ {[%clk 0:00:08.9]} 56... Kg5 {[%clk 0:00:06.5]}
57. Rf3 {[%clk 0:00:08.8]} 57... Rd8 {[%clk 0:00:06.9]} 58. Bf6+ {[%clk
0:00:08.2]} 1-0

[Event "*** Titled Tuesday Blitz"]
[Site "Chess.com"]
[Date "2019.06.04"]
[Round "3"]
[White "savinspm"]
[Black "quesfr"]
[Result "1-0"]
[WhiteElo "2087"]
[BlackElo "2169"]
[TimeControl "180+2"]
[EndTime "13:38:56 PDT"]
[Termination "savinspm won by resignation"]

1. e4 {[%clk 0:02:59.2]} 1... e5 {[%clk 0:02:59.9]} 2. Nf3 {[%clk 0:02:59.3]}
2... Nc6 {[%clk 0:03:01]} 3. Bb5 {[%clk 0:02:58.8]} 3... a6 {[%clk 0:03:01.9]}
4. Bxc6 {[%clk 0:03:00.2]} 4... dxc6 {[%clk 0:03:02.6]} 5. d4 {[%clk 0:03:01.3]}
5... exd4 {[%clk 0:02:43.8]} 6. Qxd4 {[%clk 0:03:03.2]} 6... Bg4 {[%clk
0:02:35.2]} 7. Nbd2 {[%clk 0:02:58.2]} 7... Qxd4 {[%clk 0:02:23.2]} 8. Nxd4
{[%clk 0:02:58.5]} 8... O-O-O {[%clk 0:02:24.1]} 9. Ne2 {[%clk 0:02:55.2]} 9...
Bc5 {[%clk 0:02:07.4]} 10. f3 {[%clk 0:02:55.3]} 10... Be6 {[%clk 0:01:59.5]}
11. Nf4 {[%clk 0:02:55.6]} 11... Ne7 {[%clk 0:01:55.4]} 12. Nxe6 {[%clk
0:02:55.9]} 12... fxe6 {[%clk 0:01:56.2]} 13. Nb3 {[%clk 0:02:57]} 13... Bb6
{[%clk 0:01:47.4]} 14. Ke2 {[%clk 0:02:55.8]} 14... Ng6 {[%clk 0:01:44.8]} 15.
Be3 {[%clk 0:02:56.3]} 15... Ne5 {[%clk 0:01:34]} 16. Nd2 {[%clk 0:02:50.8]}
16... Ba5 {[%clk 0:01:16]} 17. c3 {[%clk 0:02:43.3]} 17... Rd7 {[%clk
0:01:10.2]} 18. Bd4 {[%clk 0:02:43.3]} 18... Ng6 {[%clk 0:01:00.7]} 19. Nc4
{[%clk 0:02:35.1]} 19... e5 {[%clk 0:00:50.6]} 20. Nxe5 {[%clk 0:02:18]} 20...
Nxe5 {[%clk 0:00:47.5]} 21. Bxe5 {[%clk 0:02:18.9]} 21... Bb6 {[%clk 0:00:36.2]}
22. Rad1 {[%clk 0:02:18.9]} 22... Re7 {[%clk 0:00:25.2]} 23. Bf4 {[%clk
0:02:17.4]} 23... Rf8 {[%clk 0:00:20.6]} 24. Be3 {[%clk 0:02:18]} 24... Bxe3
{[%clk 0:00:18]} 25. Kxe3 {[%clk 0:02:19.2]} 25... g5 {[%clk 0:00:19.6]} 26. h3
{[%clk 0:02:18.8]} 26... h5 {[%clk 0:00:20.2]} 27. Rd3 {[%clk 0:02:12.8]} 27...
Rg8 {[%clk 0:00:20.5]} 28. Rhd1 {[%clk 0:02:04.6]} 28... b6 {[%clk 0:00:17.9]}
29. g3 {[%clk 0:01:54.9]} 29... Rge8 {[%clk 0:00:17.7]} 30. Rd4 {[%clk
0:01:48.5]} 30... c5 {[%clk 0:00:18.8]} 31. Ra4 {[%clk 0:01:48.8]} 31... Kb7
{[%clk 0:00:19.4]} 32. Rd5 {[%clk 0:01:43.7]} 32... Rg8 {[%clk 0:00:17.6]} 33.
e5 {[%clk 0:01:33.1]} 33... Kc6 {[%clk 0:00:13.4]} 34. c4 {[%clk 0:01:28.8]}
34... a5 {[%clk 0:00:11.2]} 35. Ra3 {[%clk 0:01:26.7]} 35... Rge8 {[%clk
0:00:10.4]} 36. f4 {[%clk 0:01:27.1]} 36... gxf4+ {[%clk 0:00:09.4]} 37. gxf4
{[%clk 0:01:28]} 37... Rg7 {[%clk 0:00:10.2]} 38. Kf2 {[%clk 0:01:23.7]} 38...
Rf8 {[%clk 0:00:08.9]} 39. Rf3 {[%clk 0:01:24.2]} 39... Rgf7 {[%clk 0:00:08.6]}
40. Ke3 {[%clk 0:01:23.8]} 40... Rg7 {[%clk 0:00:09.2]} 41. e6 {[%clk
0:01:23.9]} 41... Rg1 {[%clk 0:00:09.8]} 42. f5 {[%clk 0:01:24.3]} 42... Rb1
{[%clk 0:00:09.4]} 43. Rf2 {[%clk 0:01:23.1]} 43... Re1+ {[%clk 0:00:08.6]} 44.
Re2 {[%clk 0:01:24.3]} 44... Rf1 {[%clk 0:00:07.5]} 45. e7 {[%clk 0:01:20.5]}
45... Re8 {[%clk 0:00:08.2]} 46. Kd2 {[%clk 0:01:21.6]} 46... b5 {[%clk
0:00:08.4]} 47. Rd8 {[%clk 0:01:22.3]} 47... Rxe7 {[%clk 0:00:02.5]} 48. cxb5+
{[%clk 0:01:20.7]} 48... Kxb5 {[%clk 0:00:02.8]} 49. Rxe7 {[%clk 0:01:21.8]}
49... Rxf5 {[%clk 0:00:02.9]} 50. Rd3 {[%clk 0:01:17.2]} 50... c4 {[%clk
0:00:02.8]} 51. Rde3 {[%clk 0:01:16.2]} 51... Kb4 {[%clk 0:00:03.1]} 52. Rxc7
{[%clk 0:01:10]} 52... h4 {[%clk 0:00:04.4]} 53. Rb7+ {[%clk 0:01:07.7]} 53...
Ka4 {[%clk 0:00:05.2]} 54. Kc3 {[%clk 0:01:00.6]} 54... Rf3 {[%clk 0:00:05.2]}
55. Re7 {[%clk 0:00:58]} 55... Rf2 {[%clk 0:00:05.1]} 56. Re2 {[%clk 0:00:56.7]}
56... Rf3+ {[%clk 0:00:05.8]} 57. R7e3 {[%clk 0:00:57.8]} 57... Rf7 {[%clk
0:00:05.1]} 58. Kxc4 {[%clk 0:00:55.8]} 58... Rf4+ {[%clk 0:00:05.9]} 59. Kc3
{[%clk 0:00:55.5]} 59... Rc4+ {[%clk 0:00:06.9]} 60. Kd2 {[%clk 0:00:52.8]}
60... Rc7 {[%clk 0:00:05.8]} 61. Re4+ {[%clk 0:00:50.5]} 61... Kb5 {[%clk
0:00:07]} 62. Rxh4 {[%clk 0:00:51.2]} 62... Rd7+ {[%clk 0:00:07.3]} 63. Kc3
{[%clk 0:00:51.3]} 63... Rc7+ {[%clk 0:00:08.2]} 64. Kd3 {[%clk 0:00:52.2]}
64... Rc1 {[%clk 0:00:07.8]} 65. Rc2 {[%clk 0:00:49.6]} 65... Rd1+ {[%clk
0:00:08.1]} 66. Kc3 {[%clk 0:00:50.9]} 66... Rd5 {[%clk 0:00:07.9]} 67. a4+
{[%clk 0:00:47.5]} 67... Kc5 {[%clk 0:00:07.7]} 68. Kb3+ {[%clk 0:00:48.2]}
68... Kb6 {[%clk 0:00:08.6]} 69. Rh6+ {[%clk 0:00:49.1]} 69... Kb7 {[%clk
0:00:09.7]} 70. h4 {[%clk 0:00:48.4]} 70... Rd4 {[%clk 0:00:09.4]} 71. h5 {[%clk
0:00:46.7]} 71... Rb4+ {[%clk 0:00:10.3]} 72. Ka3 {[%clk 0:00:48]} 72... Ka7
{[%clk 0:00:11]} 73. Rg2 {[%clk 0:00:48.7]} 1-0